lending/lending_fUSD_20240110
["ID","MTS","AMOUNT","RATE_DAILY","PERIOD"]
[311141737,1704929478243,-3847.64,0.00040547,4]
[311141738,1704929478253,-1493.63,0.00040547,4]
[311141739,1704929478262,-500.0,0.00040547,4]
[311141740,1704929478272,-500.0,0.00040547,4]
[311141741,1704929478281,-500.0,0.00040547,4]
[311141742,1704929478291,-1517.38,0.00040547,4]
[311141743,1704929478301,-1089.24,0.00040547,4]
[311141744,1704929478315,-500.0,0.00040547,4]
[311141745,1704929478325,-709.16,0.00040547,4]
[311141746,1704929478336,-500.0,0.00040547,4]
[311141747,1704929478347,-999.05,0.00040547,4]
[311141748,1704929478357,-539.92,0.00040547,4]
[311141749,1704929478367,-500.0,0.00040547,4]
[311141750,1704929478377,-2312.53,0.00040547,4]
[311141751,1704929478388,-1938.93,0.00040547,4]
[311141752,1704929478399,-500.0,0.00040547,4]
[311141753,1704929478409,-500.0,0.00040547,4]
[311141754,1704929478419,-500.0,0.00040547,4]
[311141755,1704929478428,-500.0,0.00040547,4]
[311141756,1704929478438,-1637.04,0.00040547,4]
[311141757,1704929478447,-500.0,0.00040547,4]
[311141758,1704929478457,-500.0,0.00040547,4]
[311141759,1704929478467,-500.0,0.00040547,4]
[311141760,1704929478476,-918.68,0.00040547,4]
[311141761,1704929478485,-734.84,0.00040547,4]
[311141762,1704929478495,-500.0,0.00040547,4]
[311141763,1704929478505,-500.0,0.00040547,4]
[311141764,1704929478514,-1045.89,0.00040547,4]
[311141765,1704929478524,-732.31,0.00040547,4]
[311141766,1704929478533,-500.0,0.00040547,4]
[311141767,1704929478542,-1070.3,0.00040547,4]
[311141768,1704929478552,-500.0,0.00040547,4]
[311141769,1704929478567,-500.0,0.00040547,4]
[311141770,1704929478576,-604.47,0.00040547,4]
[311141771,1704929478586,-760.88,0.00040547,4]
[311141772,1704929478597,-500.0,0.00040547,4]
[311141773,1704929478606,-779.41,0.00040547,4]
[311141774,1704929478616,-1339.65,0.00040547,4]
[311141775,1704929478626,-2385.17,0.00040547,4]
[311141776,1704929478636,-500.0,0.00040547,4]
[311141777,1704929478646,-500.0,0.00040547,4]
[311141778,1704929478655,-152.97219112,0.00040596,7]
[311141779,1704929478665,-666.40111,0.00040598,8]
[311141780,1704929478674,-150.0,0.00040599,2]
[311141781,1704929478684,-2000.0,0.000406,2]
[311141782,1704929478694,-1000.0,0.000406,2]
[311141783,1704929478703,-1000.0,0.000406,2]
[311141784,1704929478713,-302.0,0.00040658,4]
[311141785,1704929478722,-166.0,0.0004067,2]
[311141786,1704929478732,-22310.02526555,0.00040684,5]
[311141787,1704929478742,-6838.05163609,0.00040685,2]
[311141788,1704929478751,-2129.60210846,0.00040687,15]
[311141789,1704929478761,-666.40111,0.00040698,6]
[311141790,1704929478770,-4000.0,0.000407,25]
[311141791,1704929478780,-4531.0,0.000407,81]
[311141792,1704929478789,-9767.25,0.000407,7]
[311141793,1704929478799,-12777.6,0.000407,7]
[311141794,1704929478809,-165.3937466,0.00040712,30]
[311141795,1704929478822,-152.97219112,0.00040726,7]
[311141796,1704929478837,-1000.0,0.00040733,2]
[311141797,1704929478847,-153.72803979,0.00040755,7]
[311141798,1704929478857,-1999.0,0.00040767,30]
[311141799,1704929478867,-207.0,0.0004077,2]
[311141800,1704929478876,-213.0,0.0004077,2]
[311141801,1704929478886,-208.0,0.0004077,2]
[311141802,1704929478895,-3223.6,0.0004077,7]
[311141803,1704929478904,-3223.6,0.0004077,7]
[311141804,1704929478914,-3223.6,0.0004077,7]
[311141805,1704929478924,-3223.6,0.0004077,7]
[311141806,1704929478934,-2140.18412672,0.00040794,30]
[311141807,1704929478944,-666.40111,0.00040798,8]
[311141808,1704929478954,-1000.0,0.00040799,2]
[311141809,1704929478965,-729.23,0.000408,4]
[311141810,1704929478975,-729.23,0.000408,4]
[311141811,1704929478985,-729.23,0.000408,4]
[311141812,1704929478995,-729.23,0.000408,4]
[311141813,1704929479005,-729.23,0.000408,4]
[311141814,1704929479014,-729.23,0.000408,4]
[311141815,1704929479024,-729.23,0.000408,4]
[311141816,1704929479034,-729.23,0.000408,4]
[311141817,1704929479043,-729.23,0.000408,4]
[311141818,1704929479053,-729.23,0.000408,4]
[311141819,1704929479062,-729.23,0.000408,4]
[311141820,1704929479074,-729.23,0.000408,4]
[311141821,1704929479084,-729.23,0.000408,4]
[311141822,1704929479093,-729.23,0.000408,4]
[311141823,1704929479102,-729.23,0.000408,4]
[311141824,1704929479112,-729.23,0.000408,4]
[311141825,1704929479121,-729.23,0.000408,4]
[311141826,1704929479130,-729.23,0.000408,4]
[311141827,1704929479140,-729.23,0.000408,4]
[311141828,1704929479149,-729.23,0.000408,4]
[311141829,1704929479159,-37496.87089125,0.000408,30]
[311141830,1704929479168,-500.0,0.00040821,2]
[311141831,1704929479178,-500.0,0.00040821,4]
[311141832,1704929479187,-643.95,0.00040821,4]
[311141833,1704929479197,-500.0,0.00040821,4]
[311141834,1704929479206,-969.81,0.00040821,4]
[311141835,1704929479215,-500.0,0.00040821,4]
[311141836,1704929479224,-500.0,0.00040821,4]
[311141837,1704929479233,-388.91,0.00040821,4]
[311141838,1704929479242,-2076.04,0.00040821,4]
[311141839,1704929479252,-500.0,0.00040821,4]
[311141840,1704929479261,-500.0,0.00040821,4]
[311141841,1704929479270,-500.0,0.00040821,4]
[311141842,1704929479279,-500.0,0.00040821,4]
[311141843,1704929479288,-487.74,0.00040821,4]
[311141844,1704929479298,-500.0,0.00040821,7]
[311141845,1704929479307,-500.0,0.00040821,4]
[311141846,1704929479318,-500.0,0.00040821,4]
[311141847,1704929479327,-500.0,0.00040821,4]
[311141848,1704929479336,-500.0,0.00040821,4]
[311141849,1704929479345,-500.0,0.00040821,4]
[311141850,1704929479354,-500.0,0.00040821,4]
[311141851,1704929479363,-302.9,0.00040821,4]
[311141852,1704929479372,-500.0,0.00040821,4]
[311141853,1704929479382,-500.0,0.00040821,4]
[311141854,1704929479391,-500.0,0.00040821,4]
[311141855,1704929479400,-500.0,0.00040821,4]
[311141856,1704929479409,-188.72,0.00040821,4]
[311141857,1704929479419,-565.66,0.00040821,4]
[311141858,1704929479428,-500.0,0.00040821,4]
[311141859,1704929479438,-301.33,0.00040821,4]
[311141860,1704929479447,-1391.02,0.00040821,4]
[311141861,1704929479456,-500.0,0.00040821,4]
[311141862,1704929479466,-901.49,0.00040821,4]
[311141863,1704929479475,-1168.0,0.00040821,4]
[311141864,1704929479485,-1104.48,0.00040821,4]
[311141865,1704929479494,-1336.04,0.00040821,4]
[311141866,1704929479503,-500.0,0.00040821,4]
[311141867,1704929479512,-1403.81,0.00040821,4]
[311141868,1704929479521,-580.13,0.00040821,4]
[311141869,1704929479531,-500.0,0.00040821,4]
[311141870,1704929479540,-500.0,0.00040821,4]
[311141871,1704929479550,-588.64,0.00040821,4]
[311141872,1704929479559,-6847.32,0.00040821,4]
[311141873,1704929479571,-500.0,0.00040821,4]
[311141874,1704929479580,-500.0,0.00040821,4]
[311141875,1704929479589,-1442.46,0.00040821,4]
[311141876,1704929479599,-791.45,0.00040821,4]
[311141877,1704929479608,-500.0,0.00040821,4]
[311141878,1704929479617,-1371.84,0.00040821,4]
[311141879,1704929479627,-500.0,0.00040821,4]
[311141880,1704929479637,-674.38,0.00040821,4]
[311141881,1704929479646,-500.0,0.00040821,4]
[311141882,1704929479655,-1399.35,0.00040821,4]
[311141883,1704929479664,-500.0,0.00040821,4]
[311141884,1704929479673,-509.38,0.00040821,4]
[311141885,1704929479682,-334.5,0.00040821,4]
[311141886,1704929479691,-500.0,0.00040821,4]
[311141887,1704929479700,-500.0,0.00040821,4]
[311141888,1704929479709,-653.23,0.00040821,4]
[311141889,1704929479718,-500.0,0.00040821,4]
[311141890,1704929479728,-500.0,0.00040821,4]
[311141891,1704929479737,-500.0,0.00040821,4]
[311141892,1704929479747,-233.08,0.00040821,4]
[311141893,1704929479756,-694.35,0.00040821,4]
[311141894,1704929479765,-500.0,0.00040821,4]
[311141895,1704929479775,-500.0,0.00040821,4]
[311141896,1704929479785,-482.71799845,0.00040821,4]
[311141897,1704929479795,-500.0,0.00040821,4]
[311141898,1704929479804,-800.64,0.00040821,4]
[311141899,1704929479815,-545.35,0.00040821,4]
[311141900,1704929479831,-1377.63,0.00040821,4]
[311141901,1704929479841,-986.83,0.00040821,4]
[311141902,1704929479852,-1114.48,0.00040821,4]
[311141903,1704929479861,-500.0,0.00040821,4]
[311141904,1704929479873,-2234.62,0.00040821,4]
[311141905,1704929479883,-887.56,0.00040821,4]
[311141906,1704929479893,-2704.03,0.00040821,4]
[311141907,1704929479903,-662.58,0.00040821,4]
[311141908,1704929479913,-500.0,0.00040821,4]
[311141909,1704929479923,-562.06,0.00040821,4]
[311141910,1704929479933,-500.0,0.00040821,4]
[311141911,1704929479943,-568.85,0.00040821,4]
[311141912,1704929479953,-500.0,0.00040821,4]
[311141913,1704929479963,-500.0,0.00040821,4]
[311141914,1704929479974,-669.07,0.00040821,4]
[311141915,1704929479984,-1960.32,0.00040821,4]
[311141916,1704929479994,-1476.13,0.00040821,4]
[311141917,1704929480004,-967.46,0.00040821,4]
[311141918,1704929480014,-508.27,0.00040821,4]
[311141919,1704929480028,-670.39,0.00040821,4]
[311141920,1704929480038,-500.0,0.00040821,4]
[311141921,1704929480047,-500.0,0.00040821,4]
[311141922,1704929480056,-1108.5,0.00040821,4]
[311141923,1704929480071,-1012.18,0.00040821,4]
[311141924,1704929480081,-3847.64,0.00040821,4]
[311141925,1704929480090,-1493.63,0.00040821,4]
[311141926,1704929480100,-500.0,0.00040821,4]
[311141927,1704929480110,-500.0,0.00040821,4]
[311141928,1704929480119,-329.53,0.00040821,4]
[311141929,1704929480128,-1517.38,0.00040821,4]
[311141930,1704929480138,-1089.24,0.00040821,4]
[311141931,1704929480147,-500.0,0.00040821,4]
[311141932,1704929480157,-709.16,0.00040821,4]
[311141933,1704929480167,-305.81,0.00040821,4]
[311141934,1704929480177,-999.05,0.00040821,4]
[311141935,1704929480186,-539.92,0.00040821,4]
[311141936,1704929480196,-500.0,0.00040821,4]
[311141937,1704929480206,-2312.53,0.00040821,4]
[311141938,1704929480216,-1938.93,0.00040821,4]
[311141939,1704929480225,-426.9,0.00040821,4]
[311141940,1704929480235,-500.0,0.00040821,4]
[311141941,1704929480244,-487.82704662,0.00040821,4]
[311141942,1704929480253,-500.0,0.00040821,4]
[311141943,1704929480263,-1637.04,0.00040821,4]
[311141944,1704929480273,-500.0,0.00040821,4]
[311141945,1704929480282,-500.0,0.00040821,4]
[311141946,1704929480291,-500.0,0.00040821,4]
[311141947,1704929480300,-918.68,0.00040821,4]
[311141948,1704929480309,-734.84,0.00040821,4]
[311141949,1704929480321,-500.0,0.00040821,4]
[311141950,1704929480331,-500.0,0.00040821,4]
[311141951,1704929480340,-1045.89,0.00040821,4]
[311141952,1704929480349,-732.31,0.00040821,4]
[311141953,1704929480358,-634.49,0.00040821,4]
[311141954,1704929480368,-1070.3,0.00040821,4]
[311141955,1704929480377,-289.59,0.00040821,4]
[311141956,1704929480387,-500.0,0.00040821,4]
[311141957,1704929480397,-760.88,0.00040821,4]
[311141958,1704929480406,-500.0,0.00040821,4]
[311141959,1704929480415,-779.41,0.00040821,4]
[311141960,1704929480425,-1339.65,0.00040821,4]
[311141961,1704929480434,-2385.17,0.00040821,4]
[311141962,1704929480443,-500.0,0.00040821,4]
[311141963,1704929480452,-500.0,0.00040821,4]
[311141964,1704929480462,-209.0,0.0004083,2]
[311141965,1704929480472,-210.0,0.0004083,2]
[311141966,1704929480481,-209.0,0.0004083,2]
[311141967,1704929480490,-210.0,0.0004083,2]
[311141968,1704929480500,-153.72803979,0.00040851,7]
[311141969,1704929480510,-600.0,0.00040854,31]
[311141970,1704929480524,-666.40111,0.00040898,6]
[311141971,1704929480544,-230.89167607,0.000409,7]
[311141972,1704929480565,-300.00418546,0.000409,12]
[311141973,1704929480584,-195.6661891,0.000409,10]
[311141974,1704929480603,-246.77830282,0.000409,33]
[311141975,1704929480613,-500.0,0.00040987,3]
[311141976,1704929480622,-500.0,0.00040987,4]
[311141977,1704929480632,-500.0,0.00040987,5]
[311141978,1704929480642,-504.45407,0.0004099,7]
[311141979,1704929480652,-5213.0,0.0004099,3]
[311141980,1704929480661,-2001.58,0.00040995,2]
[311141981,1704929480671,-666.40111,0.00040998,8]
[311141982,1704929480680,-100000.0,0.00041,3]
[311141983,1704929480690,-6318.59904579,0.00041,60]
[311141984,1704929480699,-1000.0,0.00041,120]
[311141985,1704929480709,-20000.0,0.00041,10]
[311141986,1704929480719,-535.34855992,0.00041,14]
[311141987,1704929480728,-800.0,0.00041,2]
[311141988,1704929480739,-165.81528728,0.00041,7]
[311141989,1704929480749,-600.0,0.00041,42]
[311141990,1704929480759,-649574.31935607,0.00041,2]
[311141991,1704929480769,-213210.61801403,0.00041,30]
[311141992,1704929480780,-250.0,0.00041,30]
[311141993,1704929480791,-421.0,0.00041,30]
[311141994,1704929480800,-9767.25,0.00041,7]
[311141995,1704929480810,-12777.6,0.00041,7]
[311141996,1704929480826,-906.65152406,0.00041,15]
[311141997,1704929480838,-20399.04,0.00041,7]
[311141998,1704929480848,-150.0,0.00041,14]
[311141999,1704929480857,-150.0,0.00041,14]
[311142000,1704929480867,-150.0,0.00041,14]
[311142001,1704929480877,-150.0,0.00041,14]
[311142002,1704929480888,-150.0,0.00041,14]
[311142003,1704929480898,-150.0,0.00041,14]
[311142004,1704929480908,-150.0,0.00041,14]
[311142005,1704929480918,-150.0,0.00041,14]
[311142006,1704929480928,-150.0,0.00041,14]
[311142007,1704929480937,-150.0,0.00041,14]
[311142008,1704929480947,-150.0,0.00041,14]
[311142009,1704929480958,-150.0,0.00041,14]
[311142010,1704929480968,-150.0,0.00041,14]
[311142011,1704929480979,-150.0,0.00041,14]
[311142012,1704929480989,-150.0,0.00041,14]
[311142013,1704929481000,-150.0,0.00041,14]
[311142014,1704929481011,-150.0,0.00041,14]
[311142015,1704929481021,-150.0,0.00041,14]
[311142016,1704929481031,-150.0,0.00041,14]
[311142017,1704929481043,-150.0,0.00041,14]
[311142018,1704929481054,-150.0,0.00041,14]
[311142019,1704929481065,-150.0,0.00041,14]
[311142020,1704929481079,-150.0,0.00041,14]
[311142021,1704929481090,-150.0,0.00041,14]
[311142022,1704929481100,-150.0,0.00041,14]
[311142023,1704929481111,-150.0,0.00041,14]
[311142024,1704929481121,-150.0,0.00041,14]
[311142025,1704929481130,-150.0,0.00041,14]
[311142026,1704929481140,-151.0,0.00041,7]
[311142027,1704929481150,-150.0,0.00041,14]
[311142028,1704929481162,-150.0,0.00041,14]
[311142029,1704929481172,-150.0,0.00041,14]
[311142030,1704929481182,-150.0,0.00041,14]
[311142031,1704929481193,-150.0,0.00041,14]
[311142032,1704929481203,-150.0,0.00041,14]
[311142033,1704929481212,-150.0,0.00041,14]
[311142034,1704929481222,-150.0,0.00041,14]
[311142035,1704929481231,-150.0,0.00041,14]
[311142036,1704929481240,-150.0,0.00041,14]
[311142037,1704929481250,-150.0,0.00041,14]
[311142038,1704929481260,-150.0,0.00041,14]
[311142039,1704929481413,-150.0,0.00041,14]
[311142040,1704929481424,-191.4171,0.00041,14]
[311142041,1704929481433,-159.49727413,0.00041003,7]
[311142042,1704929481443,-188.38,0.0004103,2]
[311142043,1704929481453,-150.0,0.0004103,2]
[311142044,1704929481463,-150.0,0.0004103,2]
[311142045,1704929481473,-4965.58315067,0.0004104,30]
[311142046,1704929481483,-4783.38463491,0.0004104,30]
[311142047,1704929481493,-349.89253781,0.0004104,30]
[311142048,1704929481504,-3223.6,0.00041044,7]
[311142049,1704929481514,-3223.6,0.00041044,7]
[311142050,1704929481524,-500.0,0.00041064,4]
[311142051,1704929481534,-500.0,0.00041064,4]
[311142052,1704929481545,-500.0,0.00041064,4]
[311142053,1704929481555,-500.0,0.00041064,4]
[311142054,1704929481565,-500.0,0.00041064,4]
[311142055,1704929481580,-150.0,0.0004107,120]
[311142056,1704929481590,-150.0,0.0004107,120]
[311142057,1704929481602,-156.0,0.0004107,120]
[311142058,1704929481612,-238.0,0.0004107,120]
[311142059,1704929481623,-150.0,0.00041076,7]
[311142060,1704929481633,-150.0,0.0004108,120]
[311142061,1704929481643,-150.0,0.0004108,120]
[311142062,1704929481654,-156.0,0.0004108,120]
[311142063,1704929481665,-238.0,0.0004108,120]
[311142064,1704929481676,-2001.58,0.00041085,2]
[311142065,1704929481686,-150.0,0.0004109,120]
[311142066,1704929481697,-150.0,0.0004109,120]
[311142067,1704929481709,-156.0,0.0004109,120]
[311142068,1704929481720,-238.0,0.0004109,120]
[311142069,1704929481730,-566.0,0.00041093,120]
[311142070,1704929481741,-150.0,0.00041093,120]
[311142071,1704929481751,-1192.18984558,0.00041095,30]
[311142072,1704929481763,-1633.63401026,0.00041095,30]
[311142073,1704929481774,-355.91141683,0.00041095,30]
[311142074,1704929481785,-500.0,0.00041095,2]
[311142075,1704929481795,-500.0,0.00041095,30]
[311142076,1704929481806,-643.95,0.00041095,30]
[311142077,1704929481821,-500.0,0.00041095,2]
[311142078,1704929481837,-500.0,0.00041095,30]
[311142079,1704929481847,-969.81,0.00041095,30]
[311142080,1704929481857,-1000.0,0.00041095,2]
[311142081,1704929481869,-213.75283369,0.00041095,2]
[311142082,1704929481879,-500.0,0.00041095,30]
[311142083,1704929481890,-500.0,0.00041095,30]
[311142084,1704929481900,-2076.04,0.00041095,30]
[311142085,1704929481910,-344.97,0.00041095,30]
[311142086,1704929481920,-500.0,0.00041095,30]
[311142087,1704929481931,-500.0,0.00041095,30]
[311142088,1704929481941,-207.8,0.00041095,30]
[311142089,1704929481951,-500.0,0.00041095,7]
[311142090,1704929481962,-500.0,0.00041095,30]
[311142091,1704929481972,-219.49703631,0.00041095,30]
[311142092,1704929481983,-500.0,0.00041095,30]
[311142093,1704929481993,-500.0,0.00041095,30]
[311142094,1704929482004,-423.70773765,0.00041095,30]
[311142095,1704929482015,-500.0,0.00041095,30]
[311142096,1704929482024,-605.86,0.00041095,30]
[311142097,1704929482034,-500.0,0.00041095,30]
[311142098,1704929482044,-223.47754376,0.00041095,30]
[311142099,1704929482054,-500.0,0.00041095,30]
[311142100,1704929482063,-500.0,0.00041095,30]
[311142101,1704929482078,-1391.02,0.00041095,30]
[311142102,1704929482087,-518.76,0.00041095,30]
[311142103,1704929482097,-901.49,0.00041095,30]
[311142104,1704929482107,-3000.0,0.00041095,120]
[311142105,1704929482117,-1168.0,0.00041095,30]
[311142106,1704929482128,-1104.48,0.00041095,30]
[311142107,1704929482138,-1403.81,0.00041095,30]
[311142108,1704929482148,-1336.04,0.00041095,30]
[311142109,1704929482158,-645.61,0.00041095,30]
[311142110,1704929482168,-500.0,0.00041095,30]
[311142111,1704929482177,-500.0,0.00041095,30]
[311142112,1704929482186,-588.64,0.00041095,30]
[311142113,1704929482196,-6847.32,0.00041095,30]
[311142114,1704929482205,-153.72803979,0.00041095,7]
[311142115,1704929482215,-487.46,0.00041095,30]
[311142116,1704929482225,-500.0,0.00041095,30]
[311142117,1704929482234,-1442.46,0.00041095,30]
[311142118,1704929482243,-791.45,0.00041095,30]
[311142119,1704929482253,-500.0,0.00041095,30]
[311142120,1704929482263,-1371.84,0.00041095,30]
[311142121,1704929482273,-500.0,0.00041095,30]
[311142122,1704929482283,-674.38,0.00041095,30]
[311142123,1704929482294,-500.0,0.00041095,30]
[311142124,1704929482304,-1399.35,0.00041095,30]
[311142125,1704929482314,-500.0,0.00041095,30]
[311142126,1704929482328,-500.0,0.00041095,30]
[311142127,1704929482338,-500.0,0.00041095,30]
[311142128,1704929482347,-653.23,0.00041095,30]
[311142129,1704929482356,-500.0,0.00041095,30]
[311142130,1704929482368,-500.0,0.00041095,30]
[311142131,1704929482378,-500.0,0.00041095,30]
[311142132,1704929482387,-694.35,0.00041095,30]
[311142133,1704929482397,-500.0,0.00041095,30]
[311142134,1704929482406,-397.18706174,0.00041095,30]
[311142135,1704929482417,-304.19669864,0.00041095,30]
[311142136,1704929482426,-263.675,0.00041095,2]
[311142137,1704929482436,-800.64,0.00041095,30]
[311142138,1704929482445,-527.35,0.00041095,2]
[311142139,1704929482456,-791.025,0.00041095,2]
[311142140,1704929482465,-1054.7,0.00041095,2]
[311142141,1704929482475,-545.35,0.00041095,30]
[311142142,1704929482485,-1377.63,0.00041095,30]
[311142143,1704929482495,-986.83,0.00041095,30]
[311142144,1704929482505,-1318.375,0.00041095,2]
[311142145,1704929482515,-1582.05,0.00041095,2]
[311142146,1704929482524,-1845.725,0.00041095,2]
[311142147,1704929482535,-2109.4,0.00041095,2]
[311142148,1704929482545,-1114.48,0.00041095,30]
[311142149,1704929482554,-2373.075,0.00041095,2]
[311142150,1704929482564,-2636.75,0.00041095,2]
[311142151,1704929482578,-2900.425,0.00041095,2]
[311142152,1704929482588,-500.0,0.00041095,30]
[311142153,1704929482597,-3164.1,0.00041095,2]
[311142154,1704929482607,-3427.775,0.00041095,2]
[311142155,1704929482617,-1318.50572097,0.00041095,2]
[311142156,1704929482627,-2234.62,0.00041095,30]
[311142157,1704929482637,-887.56,0.00041095,30]
[311142158,1704929482646,-2704.03,0.00041095,30]
[311142159,1704929482655,-662.58,0.00041095,30]
[311142160,1704929482665,-500.0,0.00041095,30]
[311142161,1704929482675,-562.06,0.00041095,30]
[311142162,1704929482685,-500.0,0.00041095,30]
[311142163,1704929482695,-500.0,0.00041095,30]
[311142164,1704929482705,-500.0,0.00041095,30]
[311142165,1704929482715,-669.07,0.00041095,30]
[311142166,1704929482725,-1960.32,0.00041095,30]
[311142167,1704929482735,-1476.13,0.00041095,30]
[311142168,1704929482744,-967.46,0.00041095,30]
[311142169,1704929482753,-508.27,0.00041095,30]
[311142170,1704929482763,-670.39,0.00041095,30]
[311142171,1704929482773,-500.0,0.00041095,30]
[311142172,1704929482782,-1011.79424907,0.00041095,10]
[311142173,1704929482793,-500.0,0.00041095,30]
[311142174,1704929482802,-1108.5,0.00041095,30]
[311142175,1704929482812,-1012.18,0.00041095,30]
[311142176,1704929482827,-3847.64,0.00041095,30]
[311142177,1704929482840,-1493.63,0.00041095,30]
[311142178,1704929482850,-183.75,0.00041095,30]
[311142179,1704929482860,-500.0,0.00041095,30]
[311142180,1704929482871,-1517.38,0.00041095,30]
[311142181,1704929482881,-1089.24,0.00041095,30]
[311142182,1704929482891,-500.0,0.00041095,30]
[311142183,1704929482901,-709.16,0.00041095,30]
[311142184,1704929482911,-999.05,0.00041095,30]
[311142185,1704929482920,-539.92,0.00041095,30]
[311142186,1704929482930,-500.0,0.00041095,30]
[311142187,1704929482940,-2312.53,0.00041095,30]
[311142188,1704929482950,-1938.93,0.00041095,30]
[311142189,1704929482959,-500.0,0.00041095,30]
[311142190,1704929482969,-500.0,0.00041095,30]
[311142191,1704929482979,-1637.04,0.00041095,30]
[311142192,1704929482988,-500.0,0.00041095,30]
[311142193,1704929482997,-309.16312285,0.00041095,30]
[311142194,1704929483007,-500.0,0.00041095,30]
[311142195,1704929483016,-918.68,0.00041095,30]
[311142196,1704929483026,-734.84,0.00041095,30]
[311142197,1704929483036,-500.0,0.00041095,30]
[311142198,1704929483045,-500.0,0.00041095,30]
[311142199,1704929483054,-1045.89,0.00041095,30]
[311142200,1704929483064,-732.31,0.00041095,30]
[311142201,1704929483077,-1070.3,0.00041095,30]
[311142202,1704929483086,-500.0,0.00041095,15]
[311142203,1704929483096,-500.0,0.00041095,30]
[311142204,1704929483109,-500.0,0.00041095,15]
[311142205,1704929483119,-500.0,0.00041095,15]
[311142206,1704929483129,-500.0,0.00041095,15]
[311142207,1704929483138,-500.0,0.00041095,15]
[311142208,1704929483148,-760.88,0.00041095,30]
[311142209,1704929483158,-500.0,0.00041095,15]
[311142210,1704929483167,-500.0,0.00041095,30]
[311142211,1704929483177,-779.41,0.00041095,30]
[311142212,1704929483186,-1339.65,0.00041095,30]
[311142213,1704929483196,-2385.17,0.00041095,30]
[311142214,1704929483206,-500.0,0.00041095,30]
[311142215,1704929483216,-500.0,0.00041095,30]
[311142216,1704929483225,-153.84,0.00041096,2]
[311142217,1704929483234,-3725.88480933,0.00041096,2]
[311142218,1704929483435,-493.595025,0.00040273,4]
[311142219,1704929483450,-864.154975,0.00040273,4]
[311142220,1704929483460,-2218.28296133,0.00041096,2]
[311142221,1704929483472,-2211.37222934,0.00041096,2]
[311142222,1704929483480,-180.0,0.00041096,2]
[311142223,1704929483490,-2400.0,0.00041096,14]
[311142224,1704929483499,-206.33,0.00041096,2]
[311142225,1704929483509,-6812.39,0.00041096,2]
[311142226,1704929483518,-666.40111,0.00041098,6]
[311142227,1704929483527,-516.47939398,0.000411,2]
[311142228,1704929483537,-200.0,0.000411,2]
[311142229,1704929483547,-5500.0,0.000411,30]
[311142230,1704929483557,-1500.0,0.000411,30]
[311142231,1704929483566,-3476.92726668,0.000411,5]
[311142232,1704929483588,-502.90739825,0.000411,5]
[311142233,1704929483605,-479.96318635,0.00040547,4]
[311142234,1704929483616,-877.78681365,0.00040547,4]
[311142235,1704929483625,-4020.16533507,0.000411,5]
[311142236,1704929483634,-1000.0,0.000411,2]